bitfinex-derivatives/quotes_SOLF0:USTF0_20250914
["timestamp","ask_amount","ask_price","bid_price","bid_amount"]
[1757853029964,6.38,246.68,246.46,5.47]
[1757853030172,6.99,246.64,246.46,5.47]
[1757853031371,6.99,246.56,246.46,5.47]
[1757853032669,6.99,246.56,246.41,5.51]
[1757853034078,6.99,246.5,246.41,5.51]
[1757853038386,6.99,246.5,246.36,5.51]
[1757853039079,6.99,246.44,246.36,5.51]
[1757853045992,0.02747883,246.45,246.36,5.51]
[1757853051794,6.99,246.44,246.36,5.51]
[1757853053703,6.99,246.44,246.29,5.51]
[1757853060902,6.68,246.49,246.29,5.51]
[1757853061307,6.68,246.49,246.3,5.5]
[1757853061709,6.68,246.49,246.31,3.38607153]
[1757853061909,6.68,246.49,246.32,5.5]
[1757853062106,6.68,246.49,246.34,5.5]
[1757853066317,6.68,246.49,246.33,12.44607153]
[1757853066318,6.68,246.49,246.37,5.5]
[1757853067714,6.68,246.49,246.38,5.5]
[1757853068013,6.68,246.55,246.39,5.5]
[1757853068210,272.56,246.56,246.39,3.38607153]
[1757853068517,6.68,246.55,246.4,5.5]
[1757853071413,272.56,246.56,246.4,8.88607153]
[1757853071610,6.68,246.55,246.4,8.88607153]
[1757853071819,272.56,246.56,246.4,8.88607153]
[1757853072208,6.68,246.55,246.4,8.88607153]
[1757853072412,272.56,246.56,246.4,8.88607153]
[1757853072818,284.72255422,246.56,246.4,8.88607153]
[1757853073621,284.72255422,246.56,246.41,3.38607153]
[1757853073622,6.68,246.55,246.41,3.38607153]
[1757853075017,6.68,246.55,246.42,5.5]
[1757853086226,0.02628187,246.51,246.42,5.5]
[1757853086428,6.68,246.5,246.42,5.5]
[1757853089330,6.48,246.5,246.38,3.38607153]
[1757853089531,6.48,246.5,246.36,3.38607153]
[1757853089731,6.48,246.55,246.35,8.89607153]
[1757853090233,6.48,246.53,246.35,5.51]
[1757853090427,10.96325464,246.53,246.31,5.51]
[1757853090732,6.48,246.51,246.31,5.51]
[1757853091831,10.96325464,246.51,246.31,5.51]
[1757853092421,6.48,246.49,246.31,5.51]
[1757853092628,6.48,246.47,246.31,5.51]
[1757853093425,22.22,246.46,246.31,5.51]
[1757853093625,6.48,246.45,246.31,5.51]
[1757853094128,0.03003139,246.4,246.31,5.51]
[1757853099426,6.48,246.39,246.31,5.51]
[1757853103439,6.48,246.39,246.25,5.51]
[1757853103834,6.48,246.37,246.25,5.51]
[1757853124648,6.67,246.47,246.27,4.51541451]
[1757853124854,22.81,246.47,246.28,5.52]
[1757853125655,6.67,246.47,246.28,5.52]
[1757853125959,272.62,246.48,246.3,4.51541451]
[1757853126250,6.67,246.47,246.31,5.52]
[1757853126757,6.67,246.47,246.31,4.51541451]
[1757853126956,6.67,246.47,246.32,5.52]
[1757853132053,6.67,246.47,246.32,10.03541451]
[1757853132254,99.06,246.51,246.33,5.52]
[1757853132255,6.67,246.5,246.33,5.52]
[1757853137468,6.67,246.5,246.33,10.03541451]
[1757853137761,6.67,246.5,246.34,5.52]
[1757853138859,6.67,246.5,246.36,5.52]
[1757853139364,6.67,246.5,246.37,5.52]
[1757853145566,6.67,246.5,246.38,4.51541451]
[1757853145769,6.67,246.5,246.39,5.52]
[1757853147070,6.67,246.58,246.41,5.52]
[1757853156073,6.67,246.58,246.41,10.03541451]
[1757853156375,6.73,246.61,246.42,5.51]
[1757853157477,13.51,246.61,246.42,5.51]
[1757853158378,6.73,246.61,246.42,5.51]
[1757853171385,6.73,246.61,246.42,10.02541451]
[1757853171586,6.73,246.63,246.43,5.51]
[1757853173788,6.75,246.63,246.44,5.51]
[1757853175792,6.75,246.63,246.46,5.51]
[1757853182394,33.26826109,246.65,246.46,4.51541451]
[1757853182595,6.49,246.64,246.47,5.51]
[1757853188798,33.26826109,246.65,246.47,4.51541451]
[1757853189104,6.49,246.64,246.48,5.51]
[1757853191404,6.49,246.64,246.49,5.51]
[1757853194603,6.49,246.64,246.5,5.51]
[1757853195100,175.01891615,246.65,246.47,10.02541451]
[1757853195302,6.49,246.64,246.47,10.02541451]
[1757853195498,175.01891615,246.65,246.47,10.02541451]
[1757853195703,4.48325464,246.61,246.43,10.02541451]
[1757853196002,4.48325464,246.6,246.43,10.02541451]
[1757853196209,6.49,246.58,246.43,5.51]
[1757853196504,10.97325464,246.58,246.4,4.51541451]
[1757853196707,0.0257515,246.53,246.39,10.02541451]
[1757853197011,6.49,246.51,246.39,5.51]
[1757853197503,6.49,246.51,246.35,10.02541451]
[1757853197804,6.49,246.51,246.35,5.51]
[1757853201010,6.49,246.51,246.35,10.02541451]
[1757853201208,6.49,246.51,246.36,5.51]
[1757853211921,6.49,246.51,246.31,5.51]
[1757853212410,6.35,246.42,246.31,5.51]
[1757853227317,0.0293924,246.43,246.31,5.51]
[1757853228320,6.35,246.42,246.31,5.51]
[1757853232334,6.35,246.42,246.23,4.51541451]
[1757853232534,6.35,246.42,246.24,5.52]
[1757853237538,6.77,246.4,246.24,5.52]
[1757853241843,6.77,246.38,246.24,5.52]
[1757853253249,6.77,246.47,246.25,5.52]
[1757853253553,6.77,246.47,246.28,5.52]
[1757853254143,6.77,246.47,246.25,57.46]
[1757853254144,6.77,246.47,246.29,4.51541451]
[1757853254449,6.77,246.47,246.3,5.52]
[1757853257553,6.77,246.47,246.31,5.52]
[1757853258752,6.77,246.47,246.31,5.2]
[1757853261155,6.77,246.47,246.32,5.2]
[1757853263553,6.77,246.47,246.33,4.51541451]
[1757853263754,6.77,246.47,246.34,5.2]
[1757853270852,6.62,246.63,246.44,5.19]
[1757853271050,6.62,246.63,246.48,5.19]
[1757853272348,6.62,246.63,246.43,279.42350899]
[1757853272349,6.62,246.63,246.5,5.19]
[1757853273355,6.62,246.63,246.52,5.19]
[1757853273756,6.62,246.63,246.54,5.19]
[1757853274961,6.62,246.63,246.55,85.86]
[1757853275160,6.62,246.63,246.54,5.19]
[1757853275459,6.62,246.63,246.55,85.84]
[1757853278663,6.62,246.63,246.54,5.19]
[1757853279061,6.62,246.63,246.55,38.22]
[1757853281359,6.62,246.63,246.56,5.19]
[1757853282860,6.62,246.63,246.56,104.33]
[1757853284368,6.62,246.63,246.57,99.1]
[1757853284568,6.62,246.63,246.56,5.19]
[1757853284763,6.62,246.63,246.57,19.28]
[1757853285268,6.62,246.63,246.56,47.81]
[1757853289171,6.62,246.74,246.51,5.19]
[1757853289375,0.70582509,246.75,246.51,104.19]
[1757853289669,6.62,246.74,246.51,5.19]
[1757853290472,126.54466593,246.74,246.51,5.19]
[1757853293876,126.54466593,246.74,246.53,5.18]
[1757853293877,6.92,246.73,246.53,5.18]
[1757853298876,6.92,246.73,246.49,12.10348405]
[1757853298877,6.62,246.73,246.55,5.17]
[1757853303486,6.62,246.73,246.56,62.0]
[1757853303682,6.62,246.73,246.57,5.17]
[1757853306885,6.62,246.73,246.59,5.17]
[1757853307583,6.62,246.73,246.6,99.08]
[1757853307785,6.56,246.79,246.6,99.08]
[1757853307786,6.62,246.78,246.61,5.17]
[1757853309976,6.62,246.78,246.61,104.29]
[1757853310179,125.1008987,246.79,246.61,104.29]
[1757853311481,6.62,246.78,246.61,104.29]
[1757853311790,6.62,246.78,246.61,5.17]
[1757853313389,125.1008987,246.79,246.61,5.17]
[1757853313590,6.62,246.78,246.61,5.17]
[1757853315790,6.62,246.78,246.62,5.17]
[1757853327893,0.02810076,246.72,246.62,5.17]
[1757853328099,6.62,246.71,246.62,5.17]
[1757853330900,6.62,246.71,246.56,5.18]
[1757853333702,6.62,246.71,246.55,99.36201336]
[1757853333703,6.62,246.71,246.57,9.69541451]
[1757853333902,6.62,246.71,246.58,5.18]
[1757853336201,6.62,246.78,246.6,4.51541451]
[1757853336401,6.62,246.78,246.61,5.18]
[1757853337002,6.62,246.78,246.62,5.18]
[1757853342512,6.62,246.78,246.64,5.18]
[1757853346609,6.62,246.78,246.64,4.51541451]
[1757853346814,6.62,246.78,246.65,5.18]
[1757853348121,6.62,246.78,246.66,5.18]
[1757853349813,6.62,246.78,246.55,80.74201336]
[1757853349814,6.62,246.78,246.62,5.18]
[1757853351715,4.48325464,246.77,246.62,5.18]
[1757853352112,6.62,246.76,246.62,5.18]
[1757853352316,6.62,246.74,246.56,5.18]
[1757853352517,6.62,246.71,246.56,5.18]
[1757853352922,17.2,246.71,246.56,5.18]
[1757853353318,10.58,246.71,246.52,277.5]
[1757853353518,15.06325464,246.71,246.52,277.5]
[1757853353718,4.48325464,246.7,246.52,277.5]
[1757853354325,6.62,246.69,246.52,277.5]
[1757853354520,4.48325464,246.7,246.52,277.5]
[1757853354726,6.94,246.69,246.52,277.5]
[1757853354925,6.94,246.62,246.52,277.5]
[1757853357122,6.94,246.62,246.52,5.18]
[1757853388140,0.02578675,246.63,246.46,18.0]
[1757853388340,7.02,246.62,246.47,5.18]
[1757853389039,7.04601422,246.57,246.47,5.18]
[1757853394443,6.65,246.56,246.45,4.51541451]
[1757853394648,6.65,246.56,246.41,5.19]
[1757853399050,0.02572086,246.51,246.41,5.19]
[1757853399251,6.67572086,246.51,246.41,5.19]
[1757853400150,6.67572086,246.51,246.37,4.51541451]
[1757853400351,0.02572086,246.51,246.32,9.70541451]
[1757853400556,6.65,246.5,246.28,4.51541451]
[1757853400853,6.65,246.47,246.27,5.19]
[1757853402358,6.65,246.38,246.27,5.19]
[1757853408363,0.0260445,246.39,246.18,5.19]
[1757853408558,6.65,246.38,246.2,5.19]
[1757853409059,0.02595525,246.31,246.2,5.19]
[1757853409257,6.67595525,246.31,246.2,5.19]
[1757853411468,0.02595525,246.31,246.23,5.19]
[1757853414868,0.02595525,246.31,246.25,5.19]
[1757853415063,0.02595525,246.31,246.24,62.0]
[1757853415064,0.02595525,246.31,246.27,5.19]
[1757853415669,0.02595525,246.31,246.26,99.54]
[1757853415866,0.02595525,246.31,246.26,99.5]
[1757853416168,6.6,246.3,246.24,99.52]
[1757853416867,6.6,246.3,246.23,5.19]
[1757853420869,0.02595525,246.31,246.2,99.52]
[1757853421469,6.76,246.3,246.2,99.52]
[1757853421662,6.76,246.3,246.18,5.2]
[1757853421971,6.76,246.3,246.18,104.74]
[1757853423874,6.76,246.3,246.19,5.2]
[1757853424873,0.02595525,246.31,246.19,5.2]
[1757853427769,0.02595525,246.31,246.2,99.54]
[1757853427770,6.76,246.3,246.2,99.54]
[1757853427969,6.76,246.3,246.19,5.2]
[1757853428167,6.76,246.3,246.2,99.54]
[1757853428369,0.02595525,246.31,246.2,99.54]
[1757853428773,0.02595525,246.31,246.19,5.2]
[1757853428975,6.76,246.3,246.19,104.74]
[1757853429374,6.76,246.3,246.2,5.2]
[1757853432180,6.76,246.3,246.21,99.54]
[1757853434582,6.76,246.3,246.2,104.7]
[1757853434977,0.02595525,246.31,246.2,104.7]
[1757853435177,6.76,246.3,246.2,104.7]
[1757853435582,0.02595525,246.31,246.2,5.2]
[1757853435879,6.76,246.3,246.2,5.2]
[1757853438978,0.02595525,246.31,246.14,99.46]
[1757853439176,6.76,246.3,246.14,99.46]
[1757853439371,4.48325464,246.38,246.14,99.46]
[1757853439571,6.76,246.37,246.15,5.2]
[1757853441183,11.24325464,246.37,246.15,5.2]
[1757853442285,6.76,246.35,246.15,5.2]
[1757853443887,6.76,246.35,246.07,5.2]
[1757853443888,4.48325464,246.34,246.07,5.2]
[1757853444085,6.76,246.33,246.09,5.2]
[1757853444289,11.24325464,246.33,246.09,5.2]
[1757853444990,6.76,246.31,246.09,5.2]
[1757853445189,6.76,246.29,246.09,5.2]
[1757853458100,39.82953071,246.29,246.09,5.2]
[1757853458301,6.76,246.29,246.09,5.2]
[1757853459200,7.18,246.28,246.09,5.2]
[1757853459398,6.69,246.27,246.09,5.2]
[1757853476910,14.14,246.26,246.09,5.2]
[1757853477114,6.49,246.25,246.09,5.2]
[1757853486221,40.71,246.25,246.09,5.2]
[1757853489220,45.19325464,246.25,246.09,5.2]
[1757853489420,7.02,246.23,246.09,5.2]
[1757853490326,11.50325464,246.23,246.09,5.2]
[1757853490528,7.02,246.23,246.09,5.2]
[1757853492832,7.02,246.23,246.1,5.2]
[1757853495627,7.02,246.28,246.12,4.51541451]
[1757853495832,7.02,246.28,246.13,5.2]
[1757853496130,7.02,246.28,246.14,5.2]
[1757853497230,7.02,246.28,246.15,5.2]
[1757853499330,7.02,246.28,246.11,5.2]
[1757853499830,11.50325464,246.28,246.11,5.2]
[1757853500230,7.02,246.26,246.11,5.2]
[1757853513344,11.50325464,246.26,246.11,5.2]
[1757853513545,6.79,246.24,246.11,5.2]
[1757853513745,6.79,246.22,246.11,5.2]
[1757853523955,51.75,246.26,246.11,5.2]
[1757853530062,4.48325464,246.25,246.11,5.2]
[1757853530361,6.79,246.23,246.11,5.2]
[1757853531464,11.27325464,246.23,246.11,5.2]
[1757853531765,6.79,246.23,246.11,5.2]
[1757853532660,4.48325464,246.21,246.04,5.2]
[1757853532862,6.79,246.2,246.04,5.2]
[1757853533271,11.27325464,246.2,246.04,5.2]
[1757853533464,6.79,246.2,246.04,5.2]
[1757853533663,11.27325464,246.2,246.04,5.2]
[1757853534362,6.65,246.18,246.04,5.2]
[1757853535368,0.02742599,246.13,246.04,5.2]
[1757853535570,6.65,246.12,246.04,5.2]
[1757853535770,6.65,246.12,246.01,3.52084]
[1757853539369,18.62600876,246.12,246.01,3.52084]
[1757853543079,18.62600876,246.12,246.02,5.21]
[1757853548581,18.62600876,246.12,246.01,3.52084]
[1757853552479,0.70746087,246.1,246.01,3.52084]
[1757853552682,100.57483654,246.09,246.01,3.52084]
[1757853555485,100.57483654,246.09,245.89,5.21]
[1757853559289,132.75514715,246.09,245.89,5.21]
[1757853563698,6.6,246.07,245.89,5.21]
[1757853563899,6.6,246.05,245.89,5.21]
[1757853565898,12.18,246.04,245.89,5.21]
[1757853566198,6.6,246.03,245.76,0.70768386]
[1757853566403,6.6,246.03,245.77,6.67]
[1757853566609,6.6,246.01,245.77,6.67]
[1757853566906,6.6,245.99,245.77,6.67]
[1757853567108,6.6,245.97,245.77,6.67]
[1757853567804,15.02,245.96,245.77,6.67]
[1757853568506,6.78,245.95,245.77,6.67]
[1757853568705,18.7,245.94,245.77,6.67]
[1757853569303,6.78,245.93,245.77,6.67]
[1757853574810,24.92,245.92,245.77,6.67]
[1757853575109,6.78,245.91,245.77,6.67]
[1757853575306,6.78,245.89,245.77,6.67]
[1757853575510,8.08,245.88,245.77,6.67]
[1757853575705,6.78,245.87,245.77,6.67]
[1757853575911,17.12,245.87,245.77,6.67]
[1757853576210,17.74,245.86,245.77,6.67]
[1757853576404,24.52,245.86,245.77,6.67]
[1757853576804,6.78,245.85,245.77,6.67]
[1757853577907,22.9,245.84,245.65,0.70802942]
[1757853578111,6.78,245.83,245.66,6.82]
[1757853581012,6.78,245.83,245.66,62.0]
[1757853581210,6.78,245.83,245.67,6.82]
[1757853584914,33.9,245.83,245.67,6.82]
[1757853585214,6.78,245.83,245.67,6.82]
[1757853586114,0.02616628,245.77,245.67,6.82]
[1757853587420,6.80616628,245.77,245.67,6.82]
[1757853589410,6.80616628,245.77,245.61,6.82]
[1757853589918,6.78,245.77,245.61,6.82]
[1757853591012,6.86,245.76,245.61,6.82]
[1757853591217,6.78,245.84,245.61,6.82]
[1757853591417,6.78,245.82,245.61,6.82]
[1757853591818,6.78,245.8,245.61,6.82]
[1757853592017,6.78,245.78,245.61,6.82]
[1757853592714,6.78,245.78,245.63,6.45]
[1757853593111,6.78,245.78,245.63,4.51541451]
[1757853593311,6.78,245.78,245.64,6.45]
[1757853593619,6.78,245.78,245.65,6.45]
[1757853596214,6.78,245.78,245.66,6.45]
[1757853596416,16.46,245.84,245.66,10.96541451]
[1757853596417,6.9,245.84,245.66,10.96541451]
[1757853596722,6.9,245.84,245.67,6.45]
[1757853597119,6.9,245.82,245.62,4.51541451]
[1757853597320,6.9,245.8,245.62,6.45]
[1757853597525,6.9,245.78,245.62,6.45]
[1757853597715,16.14,245.77,245.62,6.45]
[1757853597913,6.91,245.76,245.62,6.45]
[1757853600718,6.91,245.8,245.62,6.45]
[1757853600919,6.91,245.8,245.63,15.58]
[1757853601123,6.91,245.8,245.64,6.64]
[1757853602918,12.2012945,245.9,245.64,6.64]
[1757853602919,6.91,245.89,245.64,6.64]
[1757853603121,6.91,245.87,245.64,6.64]
[1757853603325,6.91,245.87,245.65,6.64]
[1757853604025,6.91,245.86,245.67,6.64]
[1757853604425,6.91,245.84,245.67,6.64]
[1757853605526,2.81139903,245.83,245.67,6.64]
[1757853605718,6.91,245.82,245.67,6.64]
[1757853605926,6.91,245.8,245.67,6.64]
[1757853606729,6.91,245.89,245.61,6.64]
[1757853606930,6.91,245.87,245.61,6.64]
[1757853607228,16.45412058,245.9,245.61,6.64]
[1757853607229,6.91,245.85,245.61,6.64]
[1757853607534,6.91,245.83,245.61,6.64]
[1757853607727,6.91,245.81,245.61,6.64]
[1757853607930,16.38341807,245.9,245.61,6.64]
[1757853607931,6.91,245.79,245.61,13.46350899]
[1757853608122,6.91,245.79,245.62,6.64]
[1757853608321,6.91,245.79,245.63,6.64]
[1757853609335,6.91,245.79,245.64,6.64]
[1757853609531,0.02836018,245.73,245.64,6.64]
[1757853609723,0.02836018,245.73,245.64,13.46350899]
[1757853610133,0.02836018,245.73,245.64,6.64]
[1757853610932,0.02836018,245.73,245.63,68.82350899]
[1757853610933,0.02836018,245.73,245.66,6.82350899]
[1757853611227,0.02836018,245.73,245.69,6.64]
[1757853611432,0.02836018,245.73,245.69,6.82350899]
[1757853611633,0.02836018,245.73,245.7,6.64]
[1757853612239,0.02836018,245.73,245.7,6.82350899]
[1757853612429,0.02836018,245.73,245.71,6.64]
[1757853612632,0.02836018,245.73,245.7,6.64]
[1757853613031,0.02836018,245.73,245.69,107.00350899]
[1757853613231,0.02836018,245.73,245.7,6.64]
[1757853613533,0.02836018,245.73,245.71,6.64]
[1757853613729,0.02836018,245.73,245.72,6.64]
[1757853613928,0.02836018,245.73,245.7,6.64]
[1757853614127,0.02836018,245.73,245.66,6.64]
[1757853614930,0.02836018,245.73,245.66,13.46350899]
[1757853615137,0.02836018,245.73,245.67,6.64]
[1757853617036,0.02836018,245.73,245.67,13.46350899]
[1757853617237,0.02836018,245.73,245.68,6.64]
[1757853617432,0.02836018,245.73,245.69,6.64]
[1757853617626,0.02836018,245.73,245.67,6.82350899]
[1757853617832,0.02836018,245.73,245.68,6.82350899]
[1757853618037,0.02836018,245.73,245.69,6.64]
[1757853618933,0.02836018,245.73,245.68,107.28350899]
[1757853619142,0.02836018,245.73,245.69,6.64]
[1757853619328,0.02836018,245.73,245.7,6.64]
[1757853619729,0.02836018,245.73,245.66,6.82350899]
[1757853619933,0.02836018,245.73,245.65,113.96350899]
[1757853620335,0.02836018,245.73,245.66,6.82350899]
[1757853620537,0.02836018,245.73,245.67,6.64]
[1757853620937,0.02836018,245.73,245.67,13.46350899]
[1757853621138,0.02836018,245.73,245.65,100.5]
[1757853621139,0.02836018,245.73,245.7,6.64]
[1757853621339,0.02836018,245.73,245.69,6.82350899]
[1757853621646,0.02836018,245.73,245.68,6.82350899]
[1757853622544,0.02836018,245.73,245.68,6.64]
[1757853622844,0.02836018,245.73,245.68,6.82350899]
[1757853623042,0.02836018,245.73,245.68,6.64]
[1757853623238,0.02836018,245.73,245.68,100.5]
[1757853623438,0.02836018,245.73,245.69,6.64]
[1757853623838,6.93836018,245.73,245.69,6.64]
[1757853624035,6.93836018,245.73,245.66,6.82350899]
[1757853624743,6.93836018,245.73,245.65,13.46350899]
[1757853625142,6.93836018,245.73,245.66,6.82350899]
[1757853625747,6.93836018,245.73,245.65,13.46350899]
[1757853625944,6.93836018,245.73,245.66,6.82350899]
[1757853626245,6.93836018,245.73,245.65,6.64]
[1757853626446,6.93836018,245.73,245.65,13.46350899]
[1757853627645,6.93836018,245.73,245.65,6.64]
[1757853627845,6.93836018,245.73,245.65,13.46350899]
[1757853628740,6.93836018,245.73,245.65,6.64]
[1757853628935,6.93836018,245.73,245.65,13.46350899]
[1757853629547,6.93836018,245.73,245.65,6.64]
[1757853629744,6.93836018,245.73,245.65,13.46350899]
[1757853630346,6.93836018,245.73,245.66,6.82350899]
[1757853630747,6.93836018,245.73,245.65,13.46350899]
[1757853630947,6.93836018,245.73,245.66,6.82350899]
[1757853631441,6.93836018,245.73,245.65,6.64]
[1757853631642,6.93836018,245.73,245.65,13.46350899]
[1757853631942,6.93836018,245.73,245.65,6.64]
[1757853632442,0.02836018,245.73,245.62,107.24350899]
[1757853632648,0.02836018,245.73,245.62,100.42]
[1757853632649,6.86,245.72,245.62,100.42]
[1757853632847,6.86,245.72,245.61,6.82350899]
[1757853633145,6.86,245.79,245.61,6.82350899]
[1757853633346,2.82983941,245.78,245.6,13.86350899]
[1757853633547,6.86,245.76,245.6,7.04]
[1757853633847,6.86,245.74,245.59,7.04]
[1757853634149,6.86,245.72,245.58,6.82350899]
[1757853634850,6.86,245.72,245.59,6.82350899]
[1757853635047,6.86,245.72,245.6,7.04]
[1757853635246,6.86,245.72,245.6,13.86350899]
[1757853635647,6.86,245.72,245.64,6.82350899]
[1757853635949,6.86,245.72,245.63,7.04]
[1757853636144,6.86,245.72,245.63,13.86350899]
[1757853636344,6.86,245.72,245.63,7.04]
[1757853637146,6.8,245.74,245.57,13.86350899]
[1757853637446,6.86,245.75,245.57,13.86350899]
[1757853637748,6.86,245.73,245.58,6.82350899]
[1757853637951,6.86,245.71,245.57,7.04]
[1757853638247,6.86,245.69,245.55,1.74429]
[1757853638847,6.86,245.69,245.57,6.82350899]
[1757853639042,6.86,245.69,245.56,7.04]
[1757853639246,6.86,245.69,245.57,6.82350899]
[1757853639451,6.86,245.69,245.58,7.04]
[1757853639646,6.86,245.69,245.58,13.86350899]
[1757853640043,6.86,245.69,245.56,21.6]
[1757853640044,6.86,245.69,245.62,7.04]
[1757853640249,6.86,245.69,245.61,6.82350899]
[1757853640449,6.86,245.69,245.57,13.86350899]
[1757853641048,6.86,245.69,245.6,13.86350899]
[1757853641247,6.86,245.69,245.6,7.04]
[1757853641753,6.86,245.69,245.56,6.82350899]
[1757853641953,7.14,245.76,245.58,6.82350899]
[1757853642143,6.86,245.74,245.56,6.82350899]
[1757853642349,6.86,245.73,245.6,7.04]
[1757853642653,6.86,245.73,245.57,6.82350899]
[1757853642846,6.86,245.73,245.55,1.74429]
[1757853642847,6.86,245.73,245.56,7.04]
[1757853643342,6.86,245.73,245.57,6.82350899]
[1757853643543,6.92,245.77,245.56,13.86350899]
[1757853643742,6.86,245.75,245.56,7.04]
[1757853643943,2.8237428,245.76,245.56,7.04]
[1757853643944,6.86,245.73,245.56,7.04]
[1757853644144,6.86,245.71,245.56,7.04]
[1757853644749,6.86,245.71,245.57,13.86350899]
[1757853644953,6.86,245.71,245.57,7.04]
[1757853645147,6.86,245.71,245.58,6.82350899]
[1757853645349,6.86,245.71,245.57,7.04]
[1757853646854,18.14,245.76,245.57,7.04]
[1757853647058,9.68102596,245.75,245.57,7.04]
[1757853647362,6.86,245.73,245.57,7.04]
[1757853647857,59.9,245.73,245.57,7.04]
[1757853648060,6.86,245.73,245.57,7.04]
[1757853648658,25.18,245.72,245.57,7.04]
[1757853648862,6.86,245.71,245.57,7.04]
[1757853650467,6.86,245.81,245.57,13.86350899]
[1757853650657,6.86,245.79,245.57,7.04]
[1757853650858,6.86,245.77,245.57,7.04]
[1757853651064,6.86,245.75,245.57,7.04]
[1757853651258,6.86,245.73,245.57,7.04]
[1757853652557,6.86,245.71,245.57,7.04]
[1757853654367,2.88136117,245.7,245.57,7.04]
[1757853654664,6.59,245.7,245.57,7.04]
[1757853654861,6.59,245.65,245.57,7.04]
[1757853656861,6.59,245.65,245.55,1.74429]
[1757853657565,6.59,245.63,245.55,1.74429]
[1757853658366,6.59,245.63,245.55,8.49429]
[1757853658565,33.07791989,245.75,245.55,8.49429]
[1757853658865,6.7,245.7,245.56,6.75]
[1757853660558,6.7,245.7,245.56,6.82350899]
[1757853660760,6.7,245.75,245.57,6.75]
[1757853661367,6.7,245.75,245.57,13.57350899]
[1757853661663,273.44,245.79,245.57,13.57350899]
[1757853661664,6.7,245.78,245.59,6.82350899]
[1757853661865,6.7,245.78,245.6,6.75]
[1757853662857,6.7,245.78,245.6,13.57350899]
[1757853663063,6.7,245.78,245.6,6.75]
[1757853663565,6.7,245.78,245.57,13.04]
[1757853663566,6.7,245.78,245.62,6.75]
[1757853663766,108.04,245.83,245.62,6.82350899]
[1757853663967,108.04,245.83,245.63,6.75]
[1757853664162,108.04,245.83,245.64,6.75]
[1757853664564,0.02630743,245.76,245.64,6.75]
[1757853665164,0.02630743,245.76,245.65,6.75]
[1757853666470,6.7,245.75,245.65,6.75]
[1757853667870,0.02630743,245.76,245.65,6.75]
[1757853668070,6.7,245.89,245.69,6.75]
[1757853668271,2.88210298,245.88,245.69,6.75]
[1757853668470,6.7,245.89,245.69,6.75]
[1757853668471,11.18325464,245.97,245.69,6.75]
[1757853668673,6.7,245.89,245.69,6.75]